fUSD/lending_fUSD_20240615
["ID","MTS","AMOUNT","RATE_DAILY","PERIOD"]
[329573063,1718451122660,-500.0,0.00023287,3]
[329573064,1718451122674,-500.0,0.00023287,3]
[329573065,1718451122685,-301.14,0.00023287,3]
[329573066,1718451122706,-553.21,0.00023287,3]
[329573067,1718451122738,-500.0,0.00023287,3]
[329573068,1718451122764,-1033.63,0.00023287,3]
[329573069,1718451122805,-500.0,0.00023287,3]
[329573070,1718451122851,-500.0,0.00023287,3]
[329573071,1718451122884,-500.0,0.00023287,3]
[329573072,1718451122894,-2515.97,0.00023287,3]
[329573073,1718451122907,-605.24,0.00023287,3]
[329573074,1718451122938,-500.0,0.00023287,3]
[329573075,1718451122988,-500.0,0.00023287,3]
[329573076,1718451123016,-393.79,0.00023287,3]
[329573077,1718451123048,-500.0,0.00023287,3]
[329573078,1718451123092,-500.0,0.00023287,3]
[329573079,1718451123127,-500.0,0.00023287,3]
[329573080,1718451123174,-500.0,0.00023287,3]
[329573081,1718451123185,-580.34,0.00023287,3]
[329573082,1718451123207,-500.0,0.00023287,3]
[329573083,1718451123235,-500.0,0.00023287,3]
[329573084,1718451123262,-500.0,0.00023287,3]
[329573085,1718451123282,-1014.91,0.00023287,3]
[329573086,1718451123298,-500.0,0.00023287,3]
[329573087,1718451123340,-517.68,0.00023287,3]
[329573088,1718451123377,-500.0,0.00023287,3]
[329573089,1718451123391,-574.11,0.00023287,3]
[329573090,1718451123408,-500.0,0.00023287,3]
[329573091,1718451123421,-500.0,0.00023287,3]
[329573092,1718451123470,-500.0,0.00023287,3]
[329573093,1718451123529,-1028.74,0.00023287,3]
[329573094,1718451123550,-500.0,0.00023287,3]
[329573095,1718451123567,-500.0,0.00023287,3]
[329573096,1718451123593,-500.0,0.00023287,3]
[329573097,1718451123606,-500.0,0.00023287,3]
[329573098,1718451123636,-255.95,0.00023287,3]
[329573099,1718451123667,-151.0,0.00023287,7]
[329573100,1718451123682,-2483.59,0.00023287,3]
[329573101,1718451123695,-500.0,0.00023287,3]
[329573102,1718451123709,-500.0,0.00023287,3]
[329573103,1718451123729,-500.0,0.00023287,3]
[329573104,1718451123742,-500.0,0.00023287,3]
[329573105,1718451123754,-500.0,0.00023287,3]
[329573106,1718451123768,-500.0,0.00023287,3]
[329573107,1718451123782,-500.0,0.00023287,3]
[329573108,1718451123794,-628.76,0.00023287,3]
[329573109,1718451123817,-500.0,0.00023287,3]
[329573110,1718451123832,-229.07,0.00023287,3]
[329573111,1718451123847,-500.0,0.00023287,3]
[329573112,1718451123867,-500.0,0.00023287,3]
[329573113,1718451123879,-500.0,0.00023287,3]
[329573114,1718451123897,-500.0,0.00023287,3]
[329573115,1718451123922,-2312.07,0.00023287,3]
[329573116,1718451123933,-325.51,0.00023287,3]
[329573117,1718451123944,-500.0,0.00023287,3]
[329573118,1718451123973,-582.73,0.00023287,3]
[329573119,1718451123985,-500.0,0.00023287,3]
[329573120,1718451124006,-1019.86,0.00023287,3]
[329573121,1718451124020,-500.0,0.00023287,3]
[329573122,1718451124054,-500.0,0.00023287,3]
[329573123,1718451124084,-505.7,0.00023287,3]
[329573124,1718451124118,-512.53,0.00023287,3]
[329573125,1718451124151,-887.95,0.00023287,3]
[329573126,1718451124200,-151.0,0.00023287,7]
[329573127,1718451124213,-526.05,0.00023287,3]
[329573128,1718451124232,-500.0,0.00023287,3]
[329573129,1718451124251,-500.0,0.00023287,3]
[329573130,1718451124273,-500.0,0.00023287,3]
[329573131,1718451124294,-500.0,0.00023287,3]
[329573132,1718451124350,-500.0,0.00023287,3]
[329573133,1718451124393,-500.0,0.00023287,3]
[329573134,1718451124431,-500.0,0.00023287,3]
[329573135,1718451124443,-500.0,0.00023287,3]
[329573136,1718451124455,-738.8,0.00023287,3]
[329573137,1718451124468,-500.0,0.00023287,3]
[329573138,1718451124496,-500.0,0.00023287,3]
[329573139,1718451124508,-500.0,0.00023287,3]
[329573140,1718451124522,-1715.51,0.00023287,3]
[329573141,1718451124537,-500.0,0.00023287,3]
[329573142,1718451124548,-740.24,0.00023287,3]
[329573143,1718451124560,-437.24850588,0.00023287,3]
[329573144,1718451124576,-960.17,0.00023287,3]
[329573145,1718451124599,-500.0,0.00023287,3]
[329573146,1718451124616,-500.0,0.00023287,3]
[329573147,1718451124631,-582.42,0.00023287,3]
[329573148,1718451124645,-653.19,0.00023287,3]
[329573149,1718451124700,-500.0,0.00023287,3]
[329573150,1718451124713,-500.0,0.00023287,3]
[329573151,1718451124723,-500.0,0.00023287,3]
[329573152,1718451124734,-500.0,0.00023287,3]
[329573153,1718451124765,-638.94,0.00023287,3]
[329573154,1718451124780,-500.0,0.00023287,3]
[329573155,1718451124798,-1207.64,0.00023287,3]
[329573156,1718451124817,-151.0,0.00023287,7]
[329573157,1718451124830,-1093.81,0.00023287,3]
[329573158,1718451124843,-500.0,0.00023287,3]
[329573159,1718451124871,-500.0,0.00023287,3]
[329573160,1718451124886,-500.0,0.00023287,3]
[329573161,1718451124918,-260.87,0.00023288,2]
[329573162,1718451124945,-380.0,0.00023288,2]
[329573163,1718451125008,-381.26,0.00023288,2]
[329573164,1718451125036,-1500.0,0.00023298,2]
[329573165,1718451125047,-1500.0,0.00023375,2]
[329573166,1718451125090,-942.42,0.00023421,3]
[329573167,1718451125101,-942.42,0.00023421,3]
[329573168,1718451125142,-942.42,0.00023421,3]
[329573169,1718451125169,-942.42,0.00023421,3]
[329573170,1718451125182,-942.5,0.00023421,3]
[329573171,1718451125200,-18073.92790832,0.00023422,2]
[329573172,1718451125254,-1500.0,0.00023435,2]
[329573173,1718451125267,-150.0,0.00023443,2]
[329573174,1718451125278,-1205.88461326,0.00023457,2]
[329573175,1718451125295,-150.0,0.00023495,2]
[329573176,1718451125327,-150.0,0.000235,3]
[329573177,1718451125396,-221.0,0.0002354,15]
[329573178,1718451125420,-1500.0,0.00023547,2]
[329573179,1718451125446,-221.0,0.0002355,15]
[329573180,1718451125480,-300.0,0.00023554,2]
[329573181,1718451125496,-221.0,0.0002356,15]
[329573182,1718451125507,-223.01,0.00023561,3]
[329573183,1718451125532,-500.0,0.00023561,3]
[329573184,1718451125543,-522.01,0.00023561,3]
[329573185,1718451125556,-500.0,0.00023561,3]
[329573186,1718451125572,-181.66520764,0.00023561,3]
[329573187,1718451125583,-500.0,0.00023561,3]
[329573188,1718451125600,-500.0,0.00023561,3]
[329573189,1718451125625,-500.0,0.00023561,2]
[329573190,1718451125644,-544.27315012,0.00023561,3]
[329573191,1718451125659,-500.0,0.00023561,3]
[329573192,1718451125672,-500.0,0.00023561,3]
[329573193,1718451125685,-500.0,0.00023561,3]
[329573194,1718451125702,-500.12,0.00023561,3]
[329573195,1718451125743,-500.0,0.00023561,3]
[329573196,1718451125754,-500.0,0.00023561,3]
[329573197,1718451125766,-500.0,0.00023561,3]
[329573198,1718451125783,-617.41,0.00023561,3]
[329573199,1718451125795,-500.0,0.00023561,3]
[329573200,1718451125811,-500.0,0.00023561,3]
[329573201,1718451125836,-500.0,0.00023561,3]
[329573202,1718451125864,-500.0,0.00023561,3]
[329573203,1718451125881,-500.0,0.00023561,3]
[329573204,1718451125891,-500.0,0.00023561,3]
[329573205,1718451125919,-500.0,0.00023561,3]
[329573206,1718451125933,-500.0,0.00023561,3]
[329573207,1718451125948,-445.85198663,0.00023561,3]
[329573208,1718451125965,-500.0,0.00023561,3]
[329573209,1718451125992,-500.0,0.00023561,3]
[329573210,1718451126139,-500.0,0.00023561,3]
[329573211,1718451126153,-500.0,0.00023561,3]
[329573212,1718451126189,-500.0,0.00023561,3]
[329573213,1718451126216,-500.0,0.00023561,3]
[329573214,1718451126248,-500.0,0.00023561,3]
[329573215,1718451126276,-500.0,0.00023561,3]
[329573216,1718451126289,-500.0,0.00023561,3]
[329573217,1718451126301,-500.0,0.00023561,3]
[329573218,1718451126314,-500.0,0.00023561,3]
[329573219,1718451126332,-500.0,0.00023561,3]
[329573220,1718451126364,-500.0,0.00023561,3]
[329573221,1718451126374,-593.7,0.00023561,3]
[329573222,1718451126393,-500.0,0.00023561,3]
[329573223,1718451126409,-924.58,0.00023561,3]
[329573224,1718451126422,-723.95,0.00023561,3]
[329573225,1718451126433,-500.0,0.00023561,3]
[329573226,1718451126444,-500.0,0.00023561,3]
[329573227,1718451126454,-500.0,0.00023561,3]
[329573228,1718451126493,-672.34,0.00023561,3]
[329573229,1718451126515,-500.0,0.00023561,3]
[329573230,1718451126536,-525.61,0.00023561,3]
[329573231,1718451126550,-500.0,0.00023561,3]
[329573232,1718451126573,-500.0,0.00023561,3]
[329573233,1718451126585,-537.49,0.00023561,3]
[329573234,1718451126598,-500.0,0.00023561,3]
[329573235,1718451126644,-500.0,0.00023561,3]
[329573236,1718451126676,-665.35,0.00023561,3]
[329573237,1718451126712,-500.0,0.00023561,3]
[329573238,1718451126726,-500.0,0.00023561,3]
[329573239,1718451126738,-520.24992703,0.00023561,3]
[329573240,1718451126748,-500.0,0.00023561,3]
[329573241,1718451126784,-573.27,0.00023561,3]
[329573242,1718451126808,-500.0,0.00023561,3]
[329573243,1718451126819,-500.0,0.00023561,3]
[329573244,1718451126860,-500.0,0.00023561,3]
[329573245,1718451126897,-500.0,0.00023561,3]
[329573246,1718451126928,-535.22,0.00023561,3]
[329573247,1718451126948,-500.0,0.00023561,3]
[329573248,1718451126961,-500.0,0.00023561,3]
[329573249,1718451126979,-653.69,0.00023561,3]
[329573250,1718451126992,-500.0,0.00023561,3]
[329573251,1718451127005,-717.74,0.00023561,3]
[329573252,1718451127020,-500.0,0.00023561,3]
[329573253,1718451127030,-583.01,0.00023561,3]
[329573254,1718451127041,-697.17,0.00023561,3]
[329573255,1718451127092,-611.55,0.00023561,3]
[329573256,1718451127119,-500.0,0.00023561,3]
[329573257,1718451127156,-449.95388111,0.00023561,3]
[329573258,1718451127172,-689.83,0.00023561,3]
[329573259,1718451127184,-500.0,0.00023561,3]
[329573260,1718451127198,-500.0,0.00023561,3]
[329573261,1718451127217,-500.0,0.00023561,3]
[329573262,1718451127228,-500.0,0.00023561,3]
[329573263,1718451127242,-500.0,0.00023561,3]
[329573264,1718451127270,-641.7,0.00023561,3]
[329573265,1718451127295,-893.27,0.00023561,3]
[329573266,1718451127308,-538.02,0.00023561,3]
[329573267,1718451127328,-572.18,0.00023561,3]
[329573268,1718451127360,-561.19,0.00023561,3]
[329573269,1718451127373,-500.0,0.00023561,3]
[329573270,1718451127387,-500.0,0.00023561,3]
[329573271,1718451127400,-500.0,0.00023561,3]
[329573272,1718451127412,-500.0,0.00023561,3]
[329573273,1718451127442,-500.0,0.00023561,3]
[329573274,1718451127453,-500.0,0.00023561,3]
[329573275,1718451127496,-500.0,0.00023561,3]
[329573276,1718451127507,-500.0,0.00023561,3]
[329573277,1718451127538,-500.0,0.00023561,3]
[329573278,1718451127549,-500.0,0.00023561,3]
[329573279,1718451127562,-600.53748204,0.00023561,3]
[329573280,1718451127573,-519.33,0.00023561,3]
[329573281,1718451127589,-500.0,0.00023561,3]
[329573282,1718451127608,-624.2,0.00023561,3]
[329573283,1718451127620,-500.0,0.00023561,3]
[329573284,1718451127631,-500.0,0.00023561,3]
[329573285,1718451127647,-500.0,0.00023561,3]
[329573286,1718451127662,-500.0,0.00023561,3]
[329573287,1718451127674,-579.75,0.00023561,3]
[329573288,1718451127685,-500.0,0.00023561,3]
[329573289,1718451127696,-500.0,0.00023561,3]
[329573290,1718451127706,-575.46,0.00023561,3]
[329573291,1718451127723,-500.0,0.00023561,3]
[329573292,1718451127734,-500.0,0.00023561,3]
[329573293,1718451127745,-500.0,0.00023561,3]
[329573294,1718451127756,-500.0,0.00023561,3]
[329573295,1718451127768,-500.0,0.00023561,3]
[329573296,1718451127778,-500.0,0.00023561,3]
[329573297,1718451127794,-500.0,0.00023561,3]
[329573298,1718451127814,-500.0,0.00023561,3]
[329573299,1718451127826,-406.59873548,0.00023561,3]
[329573300,1718451127837,-532.67,0.00023561,3]
[329573301,1718451127854,-373.39345286,0.00023561,3]
[329573302,1718451127865,-503.90371926,0.00023561,3]
[329573303,1718451127882,-500.0,0.00023561,3]
[329573304,1718451127908,-500.0,0.00023561,3]
[329573305,1718451127929,-500.0,0.00023561,3]
[329573306,1718451127956,-173.61,0.00023561,3]
[329573307,1718451127978,-500.0,0.00023561,3]
[329573308,1718451127996,-500.0,0.00023561,3]
[329573309,1718451128041,-500.0,0.00023561,3]
[329573310,1718451128056,-500.0,0.00023561,3]
[329573311,1718451128067,-687.46,0.00023561,3]
[329573312,1718451128084,-500.0,0.00023561,3]
[329573313,1718451128094,-500.0,0.00023561,3]
[329573314,1718451128132,-1092.86,0.00023561,3]
[329573315,1718451128144,-524.53,0.00023561,3]
[329573316,1718451128173,-500.0,0.00023561,3]
[329573317,1718451128183,-500.0,0.00023561,3]
[329573318,1718451128194,-1502.19,0.00023561,3]
[329573319,1718451128220,-500.0,0.00023561,3]
[329573320,1718451128246,-500.0,0.00023561,3]
[329573321,1718451128260,-500.0,0.00023561,3]
[329573322,1718451128298,-500.0,0.00023561,3]
[329573323,1718451128340,-500.0,0.00023561,3]
[329573324,1718451128356,-225.37910983,0.00023561,3]
[329573325,1718451128424,-500.0,0.00023561,3]
[329573326,1718451128445,-500.0,0.00023561,3]
[329573327,1718451128458,-500.0,0.00023561,3]
[329573328,1718451128472,-500.0,0.00023561,3]
[329573329,1718451128507,-500.0,0.00023561,3]
[329573330,1718451128532,-612.77,0.00023561,3]
[329573331,1718451128544,-500.0,0.00023561,3]
[329573332,1718451128561,-500.0,0.00023561,3]
[329573333,1718451128574,-500.0,0.00023561,3]
[329573334,1718451128588,-151.0,0.00023561,7]
[329573335,1718451128644,-500.0,0.00023561,3]
[329573336,1718451128662,-151.0,0.00023561,7]
[329573337,1718451128685,-478.01564107,0.00023561,3]
[329573338,1718451128718,-366.461821,0.00023561,7]
[329573339,1718451128741,-546.66,0.00023561,3]
[329573340,1718451128755,-366.461825,0.00023561,7]
[329573341,1718451128785,-500.0,0.00023561,3]
[329573342,1718451128820,-227.17,0.00023561,3]
[329573343,1718451128840,-915.8,0.00023561,3]
[329573344,1718451128864,-151.039888,0.00023561,7]
[329573345,1718451128886,-500.0,0.00023561,3]
[329573346,1718451128905,-151.039884,0.00023561,7]
[329573347,1718451128917,-500.0,0.00023561,3]
[329573348,1718451128961,-500.0,0.00023561,3]
[329573349,1718451128984,-500.0,0.00023561,3]
[329573350,1718451129000,-553.21,0.00023561,3]
[329573351,1718451129015,-500.0,0.00023561,3]
[329573352,1718451129034,-1033.63,0.00023561,3]
[329573353,1718451129077,-500.0,0.00023561,3]
[329573354,1718451129098,-500.0,0.00023561,3]
[329573355,1718451129135,-500.0,0.00023561,3]
[329573356,1718451129157,-2515.97,0.00023561,3]
[329573357,1718451129178,-605.24,0.00023561,3]
[329573358,1718451129197,-500.0,0.00023561,3]
[329573359,1718451129210,-500.0,0.00023561,3]
[329573360,1718451129231,-500.0,0.00023561,3]
[329573361,1718451129269,-500.0,0.00023561,3]
[329573362,1718451129288,-500.0,0.00023561,3]
[329573363,1718451129304,-500.0,0.00023561,3]
[329573364,1718451129327,-500.0,0.00023561,3]
[329573365,1718451129340,-500.0,0.00023561,3]
[329573366,1718451129359,-500.0,0.00023561,3]
[329573367,1718451129400,-500.0,0.00023561,3]
[329573368,1718451129418,-1014.91,0.00023561,3]
[329573369,1718451129433,-517.68,0.00023561,3]
[329573370,1718451129455,-500.0,0.00023561,3]
[329573371,1718451129468,-574.11,0.00023561,3]
[329573372,1718451129481,-182.35618,0.00023561,7]
[329573373,1718451129494,-500.0,0.00023561,3]
[329573374,1718451129508,-500.0,0.00023561,3]
[329573375,1718451129519,-500.0,0.00023561,3]
[329573376,1718451129558,-1028.74,0.00023561,3]
[329573377,1718451129574,-500.0,0.00023561,3]
[329573378,1718451129591,-500.0,0.00023561,3]
[329573379,1718451129629,-182.35618,0.00023561,7]
[329573380,1718451129641,-500.0,0.00023561,3]
[329573381,1718451129657,-500.0,0.00023561,3]
[329573382,1718451129671,-151.0,0.00023561,7]
[329573383,1718451129684,-2483.59,0.00023561,3]
[329573384,1718451129700,-500.0,0.00023561,3]
[329573385,1718451129720,-500.0,0.00023561,3]
[329573386,1718451129741,-500.0,0.00023561,3]
[329573387,1718451129761,-500.0,0.00023561,3]
[329573388,1718451129775,-500.0,0.00023561,3]
[329573389,1718451129790,-500.0,0.00023561,3]
[329573390,1718451129805,-368.45,0.00023561,3]
[329573391,1718451129819,-628.76,0.00023561,3]
[329573392,1718451129837,-500.0,0.00023561,3]
[329573393,1718451129851,-500.0,0.00023561,3]
[329573394,1718451129866,-500.0,0.00023561,3]
[329573395,1718451129889,-500.0,0.00023561,3]
[329573396,1718451129904,-500.0,0.00023561,3]
[329573397,1718451129934,-2312.07,0.00023561,3]
[329573398,1718451129967,-500.0,0.00023561,3]
[329573399,1718451129985,-582.73,0.00023561,3]
[329573400,1718451129997,-500.0,0.00023561,3]
[329573401,1718451130038,-1019.86,0.00023561,3]
[329573402,1718451130113,-500.0,0.00023561,3]
[329573403,1718451130125,-500.0,0.00023561,3]
[329573404,1718451130137,-505.7,0.00023561,3]
[329573405,1718451130149,-512.53,0.00023561,3]
[329573406,1718451130165,-887.95,0.00023561,3]
[329573407,1718451130201,-151.0,0.00023561,7]
[329573408,1718451130225,-526.05,0.00023561,3]
[329573409,1718451130249,-151.0,0.00023561,7]
[329573410,1718451130276,-500.0,0.00023561,3]
[329573411,1718451130304,-414.45747443,0.00023561,3]
[329573412,1718451130345,-500.0,0.00023561,3]
[329573413,1718451130371,-500.0,0.00023561,3]
[329573414,1718451130387,-500.0,0.00023561,3]
[329573415,1718451130406,-151.0,0.00023561,7]
[329573416,1718451130474,-245.6366825,0.00023561,3]
[329573417,1718451130516,-500.0,0.00023561,3]
[329573418,1718451130540,-500.0,0.00023561,3]
[329573419,1718451130557,-738.8,0.00023561,3]
[329573420,1718451130600,-500.0,0.00023561,3]
[329573421,1718451130630,-500.0,0.00023561,3]
[329573422,1718451130646,-500.0,0.00023561,3]
[329573423,1718451130678,-1715.51,0.00023561,3]
[329573424,1718451130708,-500.0,0.00023561,3]
[329573425,1718451130732,-740.24,0.00023561,3]
[329573426,1718451130748,-960.17,0.00023561,3]
[329573427,1718451130805,-500.0,0.00023561,3]
[329573428,1718451130856,-500.0,0.00023561,3]
[329573429,1718451130881,-582.42,0.00023561,3]
[329573430,1718451130895,-653.19,0.00023561,3]
[329573431,1718451130923,-500.0,0.00023561,3]
[329573432,1718451130957,-500.0,0.00023561,3]
[329573433,1718451130988,-500.0,0.00023561,3]
[329573434,1718451131000,-500.0,0.00023561,3]
[329573435,1718451131010,-638.94,0.00023561,3]
[329573436,1718451131051,-500.0,0.00023561,3]
[329573437,1718451131091,-1207.64,0.00023561,3]
[329573438,1718451131120,-151.0,0.00023561,7]
[329573439,1718451131192,-1093.81,0.00023561,3]
[329573440,1718451131209,-500.0,0.00023561,3]
[329573441,1718451131224,-500.0,0.00023561,3]
[329573442,1718451131243,-247.93,0.00023561,3]
[329573443,1718451131262,-150.0,0.00023572,2]
[329573444,1718451131276,-150.0,0.00023581,2]
[329573445,1718451131292,-128122.50559888,0.0002359,2]
[329573446,1718451131321,-298.685008,0.0002359,7]
[329573447,1718451131348,-151.0,0.0002359,7]
[329573448,1718451131369,-232.696199,0.0002359,7]
[329573449,1718451131399,-150.0,0.00023592,2]
[329573450,1718451131414,-150.0,0.00023592,2]
[329573451,1718451131429,-117759.75987534,0.000236,2]
[329573452,1718451131460,-670.87890004,0.000236,2]
[329573453,1718451131506,-150.0,0.00023615,2]
[329573454,1718451131520,-150.0,0.00023627,2]
[329573455,1718451131533,-150.0,0.00023674,2]
[329573456,1718451131546,-1010.0,0.000237,3]
[329573457,1718451131565,-1399.70760311,0.00023736,2]
[329573458,1718451131581,-521.40748737,0.00023736,2]
[329573459,1718451131603,-150.0,0.00023745,2]
[329573460,1718451131622,-150.0,0.00023766,2]
[329573461,1718451131636,-222.5,0.0002378,15]
[329573462,1718451131670,-300.0,0.00023786,2]
[329573463,1718451131736,-150.5,0.0002379,15]
[329573464,1718451131766,-155.37872575,0.000238,2]
[329573465,1718451131795,-150.5,0.000238,15]
[329573466,1718451131816,-150.0,0.00023802,2]
[329573467,1718451131829,-662.0680483,0.0002381,2]
[329573468,1718451131854,-150.0,0.00023827,2]
[329573469,1718451131866,-500.0,0.00023835,3]
[329573470,1718451131879,-522.01,0.00023835,3]
[329573471,1718451131891,-500.0,0.00023835,3]
[329573472,1718451131957,-500.0,0.00023835,3]
[329573473,1718451131987,-500.0,0.00023835,3]
[329573474,1718451132001,-500.0,0.00023835,3]
[329573475,1718451132068,-491.79593334,0.00023835,3]
[329573476,1718451132084,-500.0,0.00023835,3]
[329573477,1718451132119,-500.12,0.00023835,3]
[329573478,1718451132130,-500.0,0.00023835,3]
[329573479,1718451132164,-500.0,0.00023835,3]
[329573480,1718451132186,-500.0,0.00023835,3]
[329573481,1718451132231,-617.41,0.00023835,3]
[329573482,1718451132294,-500.0,0.00023835,3]
[329573483,1718451132313,-500.0,0.00023835,3]
[329573484,1718451132328,-500.0,0.00023835,3]
[329573485,1718451132394,-500.0,0.00023835,3]
[329573486,1718451132424,-500.0,0.00023835,3]
[329573487,1718451132462,-500.0,0.00023835,3]
[329573488,1718451132504,-500.0,0.00023835,3]
[329573489,1718451132517,-500.0,0.00023835,3]
[329573490,1718451132529,-500.0,0.00023835,3]
[329573491,1718451132540,-500.0,0.00023835,3]
[329573492,1718451132571,-500.0,0.00023835,3]
[329573493,1718451132584,-500.0,0.00023835,3]
[329573494,1718451132624,-178.3794447,0.00023835,3]
[329573495,1718451132674,-500.0,0.00023835,3]
[329573496,1718451132704,-500.0,0.00023835,3]
[329573497,1718451132720,-500.0,0.00023835,3]
[329573498,1718451132732,-500.0,0.00023835,3]
[329573499,1718451132765,-301.74333382,0.00023835,3]
[329573500,1718451132784,-500.0,0.00023835,3]
[329573501,1718451132804,-500.0,0.00023835,3]
[329573502,1718451132815,-500.0,0.00023835,3]
[329573503,1718451132827,-593.7,0.00023835,3]
[329573504,1718451132850,-500.0,0.00023835,3]
[329573505,1718451132866,-924.58,0.00023835,3]
[329573506,1718451132918,-723.95,0.00023835,3]
[329573507,1718451132954,-356.02715206,0.00023835,3]
[329573508,1718451132966,-500.0,0.00023835,3]
[329573509,1718451132989,-500.0,0.00023835,3]
[329573510,1718451133006,-672.34,0.00023835,3]
[329573511,1718451133057,-500.0,0.00023835,3]
[329573512,1718451133075,-525.61,0.00023835,3]
[329573513,1718451133103,-500.0,0.00023835,3]
[329573514,1718451133115,-500.0,0.00023835,3]
[329573515,1718451133133,-500.0,0.00023835,3]
[329573516,1718451133148,-500.0,0.00023835,3]
[329573517,1718451133182,-665.35,0.00023835,3]
[329573518,1718451133212,-500.0,0.00023835,3]
[329573519,1718451133227,-500.0,0.00023835,3]
[329573520,1718451133260,-500.0,0.00023835,3]
[329573521,1718451133272,-573.27,0.00023835,3]
[329573522,1718451133316,-500.0,0.00023835,3]
[329573523,1718451133340,-500.0,0.00023835,3]
[329573524,1718451133368,-500.0,0.00023835,3]
[329573525,1718451133398,-500.0,0.00023835,3]
[329573526,1718451133443,-535.22,0.00023835,3]
[329573527,1718451133461,-500.0,0.00023835,3]
[329573528,1718451133511,-500.0,0.00023835,3]
[329573529,1718451133544,-653.69,0.00023835,3]
[329573530,1718451133561,-500.0,0.00023835,3]
[329573531,1718451133576,-717.74,0.00023835,3]
[329573532,1718451133591,-500.0,0.00023835,3]
[329573533,1718451133617,-583.01,0.00023835,3]
[329573534,1718451133648,-697.17,0.00023835,3]
[329573535,1718451133698,-611.55,0.00023835,3]
[329573536,1718451133722,-500.0,0.00023835,3]
[329573537,1718451133733,-689.83,0.00023835,3]
[329573538,1718451133745,-500.0,0.00023835,3]
[329573539,1718451133760,-500.0,0.00023835,3]
[329573540,1718451133772,-180.07557089,0.00023835,3]
[329573541,1718451133796,-500.0,0.00023835,3]
[329573542,1718451133822,-500.0,0.00023835,3]
[329573543,1718451133846,-641.7,0.00023835,3]
[329573544,1718451133859,-893.27,0.00023835,3]
[329573545,1718451133876,-538.02,0.00023835,3]
[329573546,1718451133904,-572.18,0.00023835,3]
[329573547,1718451133930,-561.19,0.00023835,3]
[329573548,1718451133942,-218.86206407,0.00023835,3]
[329573549,1718451133973,-500.0,0.00023835,3]
[329573550,1718451134012,-500.0,0.00023835,3]
[329573551,1718451134032,-500.0,0.00023835,3]
[329573552,1718451134068,-500.0,0.00023835,3]
[329573553,1718451134083,-500.0,0.00023835,3]
[329573554,1718451134102,-500.0,0.00023835,3]
[329573555,1718451134115,-500.0,0.00023835,3]
[329573556,1718451134129,-500.0,0.00023835,3]
[329573557,1718451134141,-500.0,0.00023835,3]
[329573558,1718451134153,-519.33,0.00023835,3]
[329573559,1718451134163,-500.0,0.00023835,3]
[329573560,1718451134174,-624.2,0.00023835,3]
[329573561,1718451134200,-500.0,0.00023835,3]
[329573562,1718451134213,-500.0,0.00023835,3]